[Event "Titled Tuesday Blitz November 29 Early 2022"]
[White "Weetik, Vjacheslav"]
[Black "Mogranzini, Roberto"]
[WhiteFideId "4153472"]
[BlackFideId "810894"]
[WhiteElo "2469"]
[BlackElo "2469"]
[Result "0-1"]
[Round "08"]
[TimeControl "180+1"]
[Date "2022.11.30"]
[WhiteClock "0:00:05"]
[BlackClock "0:00:26"]

1. d4 {[%clk 0:02:59]}  Nf6 {[%clk 0:02:59]} 2. Nf3 {[%clk 0:02:59]}  d6 {[%clk 0:02:59]} 3. g3 {[%clk 0:02:56]}  g6 {[%clk 0:02:59]} 4. Bg2 {[%clk 0:02:56]}  Bg7 {[%clk 0:03:00]} 5. O-O {[%clk 0:02:56]}  O-O {[%clk 0:03:01]} 6. c4 {[%clk 0:02:56]}  Nc6 {[%clk 0:03:00]} 7. Nc3 {[%clk 0:02:56]}  Rb8 {[%clk 0:03:00]} 8. Re1 {[%clk 0:02:53]}  a6 {[%clk 0:02:57]} 9. Rb1 {[%clk 0:02:53]}  b5 {[%clk 0:02:55]} 10. cxb5 {[%clk 0:02:53]}  axb5 {[%clk 0:02:56]} 11. b4 {[%clk 0:02:54]}  e5 {[%clk 0:02:29]} 12. dxe5 {[%clk 0:02:40]}  Nxe5 {[%clk 0:02:30]} 13. Nxe5 {[%clk 0:02:39]}  dxe5 {[%clk 0:02:31]} 14. Bg5 {[%clk 0:02:23]}  Bf5 {[%clk 0:02:23]} 15. e4 {[%clk 0:02:13]}  Be6 {[%clk 0:02:17]} 16. Nd5 {[%clk 0:02:07]}  c6 {[%clk 0:02:16]} 17. Nc3 {[%clk 0:01:39]}  Qe7 {[%clk 0:02:11]} 18. Qc2 {[%clk 0:01:35]}  Rfd8 {[%clk 0:02:09]} 19. h3 {[%clk 0:01:30]}  Ra8 {[%clk 0:02:00]} 20. a4 {[%clk 0:01:27]}  Bc4 {[%clk 0:01:53]} 21. axb5 {[%clk 0:00:39]}  Bd3 {[%clk 0:01:50]} 22. Qb3 {[%clk 0:00:39]}  Bxb1 {[%clk 0:01:48]} 23. Rxb1 {[%clk 0:00:36]}  cxb5 {[%clk 0:01:45]} 24. Nxb5 {[%clk 0:00:34]}  h6 {[%clk 0:01:39]} 25. Be3 {[%clk 0:00:34]}  Rab8 {[%clk 0:01:23]} 26. Nc3 {[%clk 0:00:32]}  Rd3 {[%clk 0:01:19]} 27. Nd5 {[%clk 0:00:17]}  Nxd5 {[%clk 0:01:05]} 28. Qxd3 {[%clk 0:00:17]}  Nxe3 {[%clk 0:01:06]} 29. Qxe3 {[%clk 0:00:18]}  Rxb4 {[%clk 0:01:05]} 30. Rxb4 {[%clk 0:00:18]}  Qxb4 {[%clk 0:01:05]} 31. Bf3 {[%clk 0:00:18]}  h5 {[%clk 0:01:04]} 32. h4 {[%clk 0:00:18]}  Bf8 {[%clk 0:00:58]} 33. Kg2 {[%clk 0:00:15]}  Bc5 {[%clk 0:00:58]} 34. Qe2 {[%clk 0:00:16]}  Qd4 {[%clk 0:00:57]} 35. Qc2 {[%clk 0:00:15]}  Kg7 {[%clk 0:00:57]} 36. Qe2 {[%clk 0:00:15]}  Qc3 {[%clk 0:00:54]} 37. Qa2 {[%clk 0:00:12]}  Bd4 {[%clk 0:00:50]} 38. Qe2 {[%clk 0:00:11]}  Qc5 {[%clk 0:00:50]} 39. Kf1 {[%clk 0:00:11]}  Qc1+ {[%clk 0:00:49]} 40. Kg2 {[%clk 0:00:12]}  Qc5 {[%clk 0:00:49]} 41. Kf1 {[%clk 0:00:12]}  Qa3 {[%clk 0:00:48]} 42. Kg2 {[%clk 0:00:12]}  Qc1 {[%clk 0:00:47]} 43. Qd1 {[%clk 0:00:11]}  Qb2 {[%clk 0:00:47]} 44. Qe2 {[%clk 0:00:11]}  Qc3 {[%clk 0:00:47]} 45. Kf1 {[%clk 0:00:11]}  Kf6 {[%clk 0:00:47]} 46. Kg2 {[%clk 0:00:11]}  Qc5 {[%clk 0:00:47]} 47. Kf1 {[%clk 0:00:12]}  Qb4 {[%clk 0:00:46]} 48. Kg2 {[%clk 0:00:12]}  Qb1 {[%clk 0:00:46]} 49. Qd2 {[%clk 0:00:10]}  Kg7 {[%clk 0:00:44]} 50. Qe2 {[%clk 0:00:10]}  Qc1 {[%clk 0:00:44]} 51. Qa2 {[%clk 0:00:09]}  Qc5 {[%clk 0:00:41]} 52. Qe2 {[%clk 0:00:10]}  Bc3 {[%clk 0:00:35]} 53. Qd3 {[%clk 0:00:08]}  Be1 {[%clk 0:00:31]} 54. Qe2 {[%clk 0:00:07]}  Bb4 {[%clk 0:00:31]} 55. Kf1 {[%clk 0:00:06]}  Qd4 {[%clk 0:00:30]} 56. Qe3 {[%clk 0:00:04]}  Qxe3 {[%clk 0:00:29]} 57. fxe3 {[%clk 0:00:04]}  Kf6 {[%clk 0:00:27]} 58. Ke2 {[%clk 0:00:04]}  Bc5 {[%clk 0:00:27]} 59. Bg2 {[%clk 0:00:05]}  Ke7 {[%clk 0:00:26]} 60. Kf3 {[%clk 0:00:05]}  Bb4 {[%clk 0:00:26]} 61. Bf1 {[%clk 0:00:06]}  Be1 {[%clk 0:00:26]} 62. Bc4 {[%clk 0:00:05]}  f6 {[%clk 0:00:26]} 63. Bb5 {[%clk 0:00:05]}  Kf7 {[%clk 0:00:26]} 64. Bc4+ {[%clk 0:00:05]}  Kg7 {[%clk 0:00:26]} 65. Be6 {[%clk 0:00:06]}  g5 {[%clk 0:00:26]} 66. hxg5 {[%clk 0:00:05]}  fxg5 {[%clk 0:00:26]} 67. Bh3 {[%clk 0:00:05]}  g4+ {[%clk 0:00:26]} 68. Bxg4 {[%clk 0:00:05]}  hxg4+ {[%clk 0:00:27]} 69. Kxg4 {[%clk 0:00:06]}  Kf6 {[%clk 0:00:26]} 70. Kh4 {[%clk 0:00:05]}  Bd2 {[%clk 0:00:26]} 71. Kg4 {[%clk 0:00:05]}  Bxe3 {[%clk 0:00:26]} 0-1


[Site "https://www.chess.com"]

[Event "Titled Tuesday Blitz November 29 Early 2022"]
[White "Zhigalko, Sergei"]
[Black "Aloma Vidal, Robert"]
[WhiteFideId "13502956"]
[BlackFideId "2260409"]
[WhiteElo "2662"]
[BlackElo "2435"]
[Result "1-0"]
[Round "08"]
[TimeControl "180+1"]
[Date "2022.11.30"]
[WhiteClock "0:00:11"]
[BlackClock "0:00:19"]

1. e4 {[%clk 0:03:00]}  e5 {[%clk 0:03:00]} 2. Nf3 {[%clk 0:03:00]}  Nf6 {[%clk 0:03:01]} 3. d4 {[%clk 0:03:00]}  Nxe4 {[%clk 0:03:00]} 4. Bd3 {[%clk 0:03:00]}  d5 {[%clk 0:02:59]} 5. Nxe5 {[%clk 0:03:01]}  Nd7 {[%clk 0:02:54]} 6. Nxd7 {[%clk 0:03:01]}  Bxd7 {[%clk 0:02:54]} 7. O-O {[%clk 0:03:02]}  Qf6 {[%clk 0:02:53]} 8. Nc3 {[%clk 0:02:48]}  Qxd4 {[%clk 0:02:52]} 9. Be3 {[%clk 0:01:49]}  Qe5 {[%clk 0:02:46]} 10. Bxe4 {[%clk 0:01:23]}  dxe4 {[%clk 0:02:42]} 11. Bd4 {[%clk 0:01:23]}  Qf5 {[%clk 0:02:28]} 12. Nxe4 {[%clk 0:01:21]}  O-O-O {[%clk 0:02:27]} 13. Ng3 {[%clk 0:01:18]}  Qg6 {[%clk 0:02:21]} 14. c3 {[%clk 0:01:04]}  h5 {[%clk 0:02:20]} 15. Qb1 {[%clk 0:00:49]}  f5 {[%clk 0:02:15]} 16. Ne2 {[%clk 0:00:36]}  h4 {[%clk 0:02:10]} 17. Nf4 {[%clk 0:00:33]}  Qh6 {[%clk 0:01:25]} 18. Nh3 {[%clk 0:00:23]}  f4 {[%clk 0:01:11]} 19. Qe4 {[%clk 0:00:18]}  Bd6 {[%clk 0:01:05]} 20. Rfe1 {[%clk 0:00:15]}  Rhe8 {[%clk 0:01:02]} 21. Qd5 {[%clk 0:00:12]}  c5 {[%clk 0:00:18]} 22. Bxc5 {[%clk 0:00:07]}  Bc7 {[%clk 0:00:15]} 23. Rxe8 {[%clk 0:00:03]}  Rxe8 {[%clk 0:00:13]} 24. Rd1 {[%clk 0:00:03]}  Bc6 {[%clk 0:00:06]} 25. Qf5+ {[%clk 0:00:03]}  Kb8 {[%clk 0:00:07]} 26. Ng5 {[%clk 0:00:03]}  Qf6 {[%clk 0:00:02]} 27. Qxf6 {[%clk 0:00:02]}  gxf6 {[%clk 0:00:03]} 28. Nf3 {[%clk 0:00:03]}  b6 {[%clk 0:00:04]} 29. Bd4 {[%clk 0:00:03]}  f5 {[%clk 0:00:04]} 30. h3 {[%clk 0:00:03]}  Rh8 {[%clk 0:00:03]} 31. Bxh8 {[%clk 0:00:03]}  Be4 {[%clk 0:00:04]} 32. Nd4 {[%clk 0:00:03]}  Kb7 {[%clk 0:00:04]} 33. Re1 {[%clk 0:00:03]}  b5 {[%clk 0:00:05]} 34. f3 {[%clk 0:00:04]}  Bd5 {[%clk 0:00:06]} 35. Nxb5 {[%clk 0:00:03]}  Bxa2 {[%clk 0:00:07]} 36. Nxc7 {[%clk 0:00:03]}  Kc6 {[%clk 0:00:08]} 37. Be5 {[%clk 0:00:04]}  Kc5 {[%clk 0:00:09]} 38. Bxf4 {[%clk 0:00:05]}  Kc4 {[%clk 0:00:09]} 39. Re2 {[%clk 0:00:04]}  Kb3 {[%clk 0:00:10]} 40. Rf2 {[%clk 0:00:05]}  a5 {[%clk 0:00:11]} 41. Nb5 {[%clk 0:00:05]}  a4 {[%clk 0:00:12]} 42. Nd4+ {[%clk 0:00:06]}  Kc4 {[%clk 0:00:12]} 43. Bg5 {[%clk 0:00:07]}  Kd3 {[%clk 0:00:13]} 44. Bxh4 {[%clk 0:00:07]}  Bd5 {[%clk 0:00:13]} 45. Bg5 {[%clk 0:00:07]}  Bxf3 {[%clk 0:00:14]} 46. Nxf3 {[%clk 0:00:07]}  Ke4 {[%clk 0:00:15]} 47. Ne1 {[%clk 0:00:07]}  f4 {[%clk 0:00:16]} 48. Rxf4+ {[%clk 0:00:08]}  Ke3 {[%clk 0:00:17]} 49. Rf2+ {[%clk 0:00:08]}  Ke4 {[%clk 0:00:17]} 50. Re2+ {[%clk 0:00:08]}  Kd5 {[%clk 0:00:16]} 51. c4+ {[%clk 0:00:08]}  Kxc4 {[%clk 0:00:17]} 52. Re3 {[%clk 0:00:09]}  Kb4 {[%clk 0:00:18]} 53. Ra3 {[%clk 0:00:10]}  Kb5 {[%clk 0:00:18]} 54. h4 {[%clk 0:00:11]}  Kc4 {[%clk 0:00:19]} 55. Nf3 {[%clk 0:00:11]} 1-0


[Site "https://www.chess.com"]

[Event "Titled Tuesday Blitz November 29 Early 2022"]
[White "sabkeIXO"]
[Black "Chernobay, Artem"]
[BlackFideId "4167406"]
[WhiteElo "2500"]
[BlackElo "2473"]
[Result "0-1"]
[Round "08"]
[TimeControl "180+1"]
[Date "2022.11.30"]
[WhiteClock "0:00:20"]
[BlackClock "0:00:13"]

1. e4 {[%clk 0:03:00]}  c5 {[%clk 0:02:59]} 2. Nc3 {[%clk 0:03:00]}  d6 {[%clk 0:02:58]} 3. f4 {[%clk 0:03:00]}  g6 {[%clk 0:02:55]} 4. Nf3 {[%clk 0:03:00]}  Bg7 {[%clk 0:02:55]} 5. Bb5+ {[%clk 0:03:00]}  Bd7 {[%clk 0:02:49]} 6. Bc4 {[%clk 0:03:00]}  Nc6 {[%clk 0:02:46]} 7. d3 {[%clk 0:02:59]}  Nf6 {[%clk 0:02:31]} 8. O-O {[%clk 0:02:55]}  O-O {[%clk 0:02:31]} 9. Qe1 {[%clk 0:02:51]}  e6 {[%clk 0:02:19]} 10. Bb3 {[%clk 0:02:36]}  Nd4 {[%clk 0:02:12]} 11. Nxd4 {[%clk 0:02:35]}  cxd4 {[%clk 0:02:13]} 12. Ne2 {[%clk 0:02:35]}  a5 {[%clk 0:01:54]} 13. a4 {[%clk 0:02:29]}  Ng4 {[%clk 0:01:54]} 14. Qg3 {[%clk 0:02:10]}  Ne3 {[%clk 0:01:40]} 15. Bxe3 {[%clk 0:02:08]}  dxe3 {[%clk 0:01:41]} 16. d4 {[%clk 0:02:01]}  b5 {[%clk 0:01:25]} 17. Qxe3 {[%clk 0:01:58]}  Qb6 {[%clk 0:01:24]} 18. e5 {[%clk 0:01:11]}  dxe5 {[%clk 0:01:18]} 19. fxe5 {[%clk 0:01:09]}  bxa4 {[%clk 0:01:14]} 20. Bxa4 {[%clk 0:01:08]}  Bxa4 {[%clk 0:01:13]} 21. Rxa4 {[%clk 0:01:09]}  Qxb2 {[%clk 0:01:13]} 22. Qc3 {[%clk 0:01:06]}  Qb5 {[%clk 0:01:11]} 23. Qc4 {[%clk 0:01:04]}  Qb6 {[%clk 0:00:50]} 24. Kh1 {[%clk 0:00:54]}  Rfc8 {[%clk 0:00:45]} 25. Qd3 {[%clk 0:00:54]}  Qc6 {[%clk 0:00:32]} 26. Ra2 {[%clk 0:00:48]}  a4 {[%clk 0:00:32]} 27. c3 {[%clk 0:00:48]}  Ra7 {[%clk 0:00:25]} 28. h3 {[%clk 0:00:44]}  Rb8 {[%clk 0:00:22]} 29. Rfa1 {[%clk 0:00:44]}  Rb3 {[%clk 0:00:18]} 30. Rb1 {[%clk 0:00:38]}  Qb7 {[%clk 0:00:16]} 31. Rxb3 {[%clk 0:00:37]}  axb3 {[%clk 0:00:17]} 32. Rb2 {[%clk 0:00:31]}  Ra2 {[%clk 0:00:14]} 33. Qb1 {[%clk 0:00:31]}  Qa6 {[%clk 0:00:14]} 34. Rxb3 {[%clk 0:00:20]}  Ra1 {[%clk 0:00:13]} 35. Rb8+ {[%clk 0:00:19]}  Bf8 {[%clk 0:00:13]} 36. Kh2 {[%clk 0:00:20]}  Rxb1 {[%clk 0:00:13]} 37. Rxb1 {[%clk 0:00:20]}  Qxe2 {[%clk 0:00:13]} 0-1


[Site "https://www.chess.com"]

[Event "Titled Tuesday Blitz November 29 Early 2022"]
[White "Ambartsumova, Karina"]
[Black "Zhu, Jiner"]
[WhiteFideId "4166299"]
[BlackFideId "8608059"]
[WhiteElo "2319"]
[BlackElo "2384"]
[Result "0-1"]
[Round "09"]
[TimeControl "180+1"]
[Date "2022.11.30"]
[WhiteClock "0:00:04"]
[BlackClock "0:00:15"]

1. Nf3 {[%clk 0:02:58]}  Nf6 {[%clk 0:02:59]} 2. g3 {[%clk 0:02:56]}  g6 {[%clk 0:02:59]} 3. Bg2 {[%clk 0:02:56]}  Bg7 {[%clk 0:02:58]} 4. O-O {[%clk 0:02:56]}  O-O {[%clk 0:02:58]} 5. d4 {[%clk 0:02:55]}  d6 {[%clk 0:02:57]} 6. b3 {[%clk 0:02:55]}  Nbd7 {[%clk 0:02:54]} 7. Bb2 {[%clk 0:02:55]}  Qe8 {[%clk 0:02:48]} 8. Re1 {[%clk 0:02:52]}  e5 {[%clk 0:02:47]} 9. dxe5 {[%clk 0:02:52]}  dxe5 {[%clk 0:02:46]} 10. Ba3 {[%clk 0:02:32]}  e4 {[%clk 0:02:34]} 11. Bxf8 {[%clk 0:02:03]}  Nxf8 {[%clk 0:02:35]} 12. Nd4 {[%clk 0:02:03]}  c5 {[%clk 0:02:33]} 13. e3 {[%clk 0:01:44]}  cxd4 {[%clk 0:02:32]} 14. exd4 {[%clk 0:01:45]}  Qd8 {[%clk 0:02:26]} 15. c3 {[%clk 0:01:41]}  Bg4 {[%clk 0:02:25]} 16. Qd2 {[%clk 0:01:36]}  Ne6 {[%clk 0:02:15]} 17. h3 {[%clk 0:01:31]}  Bf3 {[%clk 0:02:10]} 18. Na3 {[%clk 0:01:28]}  h5 {[%clk 0:02:03]} 19. Nc4 {[%clk 0:01:15]}  Bxg2 {[%clk 0:01:56]} 20. Kxg2 {[%clk 0:01:14]}  Rc8 {[%clk 0:01:55]} 21. Ne3 {[%clk 0:01:13]}  Bh6 {[%clk 0:01:47]} 22. Qb2 {[%clk 0:01:04]}  Ng5 {[%clk 0:01:38]} 23. Rad1 {[%clk 0:00:57]}  Qd7 {[%clk 0:01:38]} 24. Rh1 {[%clk 0:00:55]}  Nf3 {[%clk 0:01:33]} 25. c4 {[%clk 0:00:53]}  h4 {[%clk 0:01:30]} 26. d5 {[%clk 0:00:40]}  Bg7 {[%clk 0:01:24]} 27. Qe2 {[%clk 0:00:40]}  hxg3 {[%clk 0:01:22]} 28. fxg3 {[%clk 0:00:41]}  Nh5 {[%clk 0:01:22]} 29. Ng4 {[%clk 0:00:29]}  f5 {[%clk 0:01:21]} 30. Nh2 {[%clk 0:00:30]}  Qd6 {[%clk 0:01:06]} 31. Nf1 {[%clk 0:00:24]}  Be5 {[%clk 0:01:02]} 32. Qf2 {[%clk 0:00:23]}  b6 {[%clk 0:00:58]} 33. h4 {[%clk 0:00:22]}  Kg7 {[%clk 0:00:55]} 34. Rh3 {[%clk 0:00:22]}  Rf8 {[%clk 0:00:53]} 35. Nd2 {[%clk 0:00:21]}  Nxd2 {[%clk 0:00:36]} 36. Qxd2 {[%clk 0:00:21]}  Bxg3 {[%clk 0:00:33]} 37. Rhh1 {[%clk 0:00:16]}  Be5 {[%clk 0:00:32]} 38. Rhe1 {[%clk 0:00:13]}  Nf4+ {[%clk 0:00:31]} 39. Kg1 {[%clk 0:00:14]}  Nd3 {[%clk 0:00:32]} 40. Rf1 {[%clk 0:00:14]}  Bd4+ {[%clk 0:00:32]} 41. Kg2 {[%clk 0:00:14]}  Rh8 {[%clk 0:00:30]} 42. Qg5 {[%clk 0:00:13]}  Bf6 {[%clk 0:00:26]} 43. Qg3 {[%clk 0:00:13]}  Be5 {[%clk 0:00:25]} 44. Qg5 {[%clk 0:00:13]}  Bf4 {[%clk 0:00:24]} 45. Rxf4 {[%clk 0:00:08]}  Nxf4+ {[%clk 0:00:24]} 46. Kf1 {[%clk 0:00:06]}  Rh5 {[%clk 0:00:23]} 47. Qg3 {[%clk 0:00:05]}  Kf7 {[%clk 0:00:17]} 48. Rd2 {[%clk 0:00:05]}  Ke7 {[%clk 0:00:15]} 49. Rh2 {[%clk 0:00:03]}  Nd3 {[%clk 0:00:15]} 50. Qg2 {[%clk 0:00:03]}  Qf4+ {[%clk 0:00:15]} 51. Ke2 {[%clk 0:00:03]}  Ne5 {[%clk 0:00:14]} 52. Rh3 {[%clk 0:00:03]}  Qg4+ {[%clk 0:00:14]} 53. Qxg4 {[%clk 0:00:04]}  Nxg4 {[%clk 0:00:14]} 54. Rh1 {[%clk 0:00:03]}  Kd6 {[%clk 0:00:14]} 55. Kd2 {[%clk 0:00:03]}  f4 {[%clk 0:00:15]} 56. Ke2 {[%clk 0:00:04]}  e3 {[%clk 0:00:15]} 57. Kf3 {[%clk 0:00:04]}  Nf2 {[%clk 0:00:14]} 58. Rf1 {[%clk 0:00:04]}  Rf5 {[%clk 0:00:15]} 59. Rg1 {[%clk 0:00:03]}  Rf6 {[%clk 0:00:15]} 60. Ke2 {[%clk 0:00:03]}  Ne4 {[%clk 0:00:14]} 61. Kf3 {[%clk 0:00:03]}  Nd2+ {[%clk 0:00:15]} 62. Ke2 {[%clk 0:00:04]}  Ke5 {[%clk 0:00:15]} 63. Rg5+ {[%clk 0:00:03]}  Ke4 {[%clk 0:00:15]} 64. d6 {[%clk 0:00:04]}  f3+ {[%clk 0:00:15]} 65. Kd1 {[%clk 0:00:04]}  Rxd6 {[%clk 0:00:15]} 66. Rd5 {[%clk 0:00:04]}  Rxd5 {[%clk 0:00:15]} 0-1


[Site "https://www.chess.com"]

[Event "Titled Tuesday Blitz November 29 Early 2022"]
[White "Bashirli, Saadat"]
[Black "Petrovic, Aleksa"]
[WhiteFideId "13429990"]
[BlackFideId "967629"]
[WhiteElo "1408"]
[BlackElo "2224"]
[Result "1-0"]
[Round "09"]
[TimeControl "180+1"]
[Date "2022.11.30"]
[WhiteClock "0:00:02"]
[BlackClock "0:00:01"]

1. d4 {[%clk 0:03:00]}  Nf6 {[%clk 0:02:59]} 2. c4 {[%clk 0:03:01]}  e6 {[%clk 0:02:59]} 3. Nc3 {[%clk 0:03:01]}  Bb4 {[%clk 0:02:58]} 4. e3 {[%clk 0:03:02]}  O-O {[%clk 0:02:56]} 5. Bd3 {[%clk 0:03:02]}  d5 {[%clk 0:02:55]} 6. a3 {[%clk 0:03:02]}  Bxc3+ {[%clk 0:02:53]} 7. bxc3 {[%clk 0:03:03]}  b6 {[%clk 0:02:51]} 8. cxd5 {[%clk 0:03:02]}  exd5 {[%clk 0:02:42]} 9. Ne2 {[%clk 0:03:02]}  Ba6 {[%clk 0:02:43]} 10. Bb1 {[%clk 0:03:01]}  Nc6 {[%clk 0:02:40]} 11. O-O {[%clk 0:03:00]}  Na5 {[%clk 0:02:40]} 12. Re1 {[%clk 0:02:51]}  Bc4 {[%clk 0:02:38]} 13. Bc2 {[%clk 0:02:42]}  Qd7 {[%clk 0:02:33]} 14. Ng3 {[%clk 0:02:41]}  Rfe8 {[%clk 0:01:53]} 15. f3 {[%clk 0:02:27]}  h5 {[%clk 0:01:47]} 16. e4 {[%clk 0:02:20]}  h4 {[%clk 0:01:42]} 17. Nf5 {[%clk 0:02:20]}  h3 {[%clk 0:01:24]} 18. gxh3 {[%clk 0:02:10]}  dxe4 {[%clk 0:01:20]} 19. fxe4 {[%clk 0:02:11]}  Be6 {[%clk 0:01:19]} 20. Bg5 {[%clk 0:02:04]}  Bxf5 {[%clk 0:01:13]} 21. exf5 {[%clk 0:02:05]}  Rxe1+ {[%clk 0:01:12]} 22. Qxe1 {[%clk 0:02:06]}  Re8 {[%clk 0:01:11]} 23. Qf2 {[%clk 0:02:04]}  Ne4 {[%clk 0:01:10]} 24. Bxe4 {[%clk 0:01:49]}  Rxe4 {[%clk 0:01:11]} 25. Qf3 {[%clk 0:01:41]}  Qd5 {[%clk 0:00:55]} 26. Rf1 {[%clk 0:01:22]}  Nc4 {[%clk 0:00:48]} 27. Bc1 {[%clk 0:01:12]}  f6 {[%clk 0:00:43]} 28. Qg3 {[%clk 0:01:03]}  Nd6 {[%clk 0:00:41]} 29. Qf3 {[%clk 0:01:00]}  Kf7 {[%clk 0:00:24]} 30. Qh5+ {[%clk 0:00:39]}  Ke7 {[%clk 0:00:23]} 31. Qg6 {[%clk 0:00:36]}  Qf7 {[%clk 0:00:16]} 32. Qxf7+ {[%clk 0:00:34]}  Kxf7 {[%clk 0:00:16]} 33. Kg2 {[%clk 0:00:32]}  Re2+ {[%clk 0:00:16]} 34. Kg3 {[%clk 0:00:30]}  Ne4+ {[%clk 0:00:12]} 35. Kf3 {[%clk 0:00:30]}  Nxc3 {[%clk 0:00:12]} 36. Bf4 {[%clk 0:00:20]}  Ra2 {[%clk 0:00:13]} 37. Bxc7 {[%clk 0:00:18]}  Rxa3 {[%clk 0:00:13]} 38. Rc1 {[%clk 0:00:18]}  a5 {[%clk 0:00:08]} 39. Kg4 {[%clk 0:00:16]}  Nd5 {[%clk 0:00:08]} 40. Bd6 {[%clk 0:00:16]}  Rd3 {[%clk 0:00:07]} 41. Rc8 {[%clk 0:00:14]}  Rxd4+ {[%clk 0:00:05]} 42. Kf3 {[%clk 0:00:14]}  g6 {[%clk 0:00:03]} 43. fxg6+ {[%clk 0:00:06]}  Kxg6 {[%clk 0:00:04]} 44. Rb8 {[%clk 0:00:06]}  Kf5 {[%clk 0:00:04]} 45. Bf8 {[%clk 0:00:05]}  Rd3+ {[%clk 0:00:04]} 46. Ke2 {[%clk 0:00:05]}  Nf4+ {[%clk 0:00:04]} 47. Kf2 {[%clk 0:00:05]}  Nxh3+ {[%clk 0:00:04]} 48. Kg2 {[%clk 0:00:06]}  Nf4+ {[%clk 0:00:04]} 49. Kf2 {[%clk 0:00:06]}  Nh3+ {[%clk 0:00:04]} 50. Kg2 {[%clk 0:00:06]}  Kg4 {[%clk 0:00:05]} 51. Rxb6 {[%clk 0:00:05]}  Rd2+ {[%clk 0:00:04]} 52. Kf1 {[%clk 0:00:05]}  Nf4 {[%clk 0:00:04]} 53. Rb1 {[%clk 0:00:04]}  Kf3 {[%clk 0:00:04]} 54. Bh6 {[%clk 0:00:02]}  Rf2+ {[%clk 0:00:04]} 55. Kg1 {[%clk 0:00:02]}  Nh3+ {[%clk 0:00:03]} 56. Kh1 {[%clk 0:00:02]}  Re2 {[%clk 0:00:04]} 57. Rf1+ {[%clk 0:00:02]}  Nf2+ {[%clk 0:00:03]} 58. Kg1 {[%clk 0:00:02]}  a4 {[%clk 0:00:03]} 59. Bc1 {[%clk 0:00:01]}  f5 {[%clk 0:00:03]} 60. Ba3 {[%clk 0:00:02]}  Ke3 {[%clk 0:00:02]} 61. Bc1+ {[%clk 0:00:01]}  Kf3 {[%clk 0:00:02]} 62. Ba3 {[%clk 0:00:02]}  Re3 {[%clk 0:00:01]} 63. Bc1 {[%clk 0:00:02]} 1-0


[Site "https://www.chess.com"]

[Event "Titled Tuesday Blitz November 29 Early 2022"]
[White "Bettalli, Francesco"]
[Black "Tasev, Dejan"]
[WhiteFideId "2816453"]
[BlackFideId "936618"]
[WhiteElo "2216"]
[BlackElo "2256"]
[Result "0-1"]
[Round "09"]
[TimeControl "180+1"]
[Date "2022.11.30"]
[WhiteClock "0:00:11"]
[BlackClock "0:00:04"]

1. d4 {[%clk 0:03:00]}  Nf6 {[%clk 0:02:59]} 2. Nc3 {[%clk 0:02:58]}  d5 {[%clk 0:02:58]} 3. Bg5 {[%clk 0:02:56]}  e6 {[%clk 0:02:57]} 4. e4 {[%clk 0:02:56]}  dxe4 {[%clk 0:02:58]} 5. Nxe4 {[%clk 0:02:57]}  Nbd7 {[%clk 0:02:58]} 6. Nf3 {[%clk 0:02:56]}  Be7 {[%clk 0:02:58]} 7. Bxf6 {[%clk 0:02:57]}  Nxf6 {[%clk 0:02:58]} 8. Nxf6+ {[%clk 0:02:57]}  Bxf6 {[%clk 0:02:59]} 9. c3 {[%clk 0:02:57]}  O-O {[%clk 0:02:59]} 10. Bd3 {[%clk 0:02:58]}  b6 {[%clk 0:02:55]} 11. Qe2 {[%clk 0:02:57]}  Bb7 {[%clk 0:02:55]} 12. h4 {[%clk 0:02:57]}  h6 {[%clk 0:02:50]} 13. O-O-O {[%clk 0:02:54]}  Qd5 {[%clk 0:02:47]} 14. Kb1 {[%clk 0:02:52]}  Rfd8 {[%clk 0:02:44]} 15. Rh3 {[%clk 0:02:51]}  c5 {[%clk 0:02:37]} 16. g4 {[%clk 0:02:47]}  cxd4 {[%clk 0:02:30]} 17. g5 {[%clk 0:02:47]}  Be7 {[%clk 0:02:04]} 18. gxh6 {[%clk 0:02:45]}  gxh6 {[%clk 0:01:51]} 19. Rg3+ {[%clk 0:02:31]}  Kf8 {[%clk 0:01:49]} 20. Nxd4 {[%clk 0:02:30]}  Bf6 {[%clk 0:01:35]} 21. Nc2 {[%clk 0:02:00]}  Ke7 {[%clk 0:01:28]} 22. Ne3 {[%clk 0:02:00]}  Qe5 {[%clk 0:01:24]} 23. Nf5+ {[%clk 0:01:59]}  exf5 {[%clk 0:01:22]} 24. Re3 {[%clk 0:01:59]}  Be4 {[%clk 0:01:18]} 25. f3 {[%clk 0:01:58]}  Kf8 {[%clk 0:00:53]} 26. fxe4 {[%clk 0:01:54]}  f4 {[%clk 0:00:53]} 27. Rf3 {[%clk 0:01:52]}  Bxh4 {[%clk 0:00:51]} 28. Rh1 {[%clk 0:01:45]}  Bg5 {[%clk 0:00:50]} 29. Qc2 {[%clk 0:01:40]}  Rd6 {[%clk 0:00:48]} 30. Bc4 {[%clk 0:01:37]}  Rc8 {[%clk 0:00:45]} 31. Bd5 {[%clk 0:01:35]}  Rc7 {[%clk 0:00:41]} 32. Qa4 {[%clk 0:01:35]}  Kg7 {[%clk 0:00:38]} 33. Rg1 {[%clk 0:01:27]}  a5 {[%clk 0:00:29]} 34. Qb3 {[%clk 0:01:23]}  Rc5 {[%clk 0:00:20]} 35. c4 {[%clk 0:01:21]}  f5 {[%clk 0:00:15]} 36. exf5 {[%clk 0:01:19]}  Qxf5+ {[%clk 0:00:15]} 37. Ka1 {[%clk 0:01:10]}  Qe5 {[%clk 0:00:16]} 38. Qd1 {[%clk 0:00:59]}  Rc7 {[%clk 0:00:15]} 39. Re1 {[%clk 0:00:59]}  Qf6 {[%clk 0:00:15]} 40. Re8 {[%clk 0:00:50]}  Rxd5 {[%clk 0:00:12]} 41. cxd5 {[%clk 0:00:47]}  a4 {[%clk 0:00:10]} 42. Re6 {[%clk 0:00:47]}  Qf5 {[%clk 0:00:08]} 43. Rxb6 {[%clk 0:00:41]}  a3 {[%clk 0:00:08]} 44. d6 {[%clk 0:00:41]}  axb2+ {[%clk 0:00:08]} 45. Rxb2 {[%clk 0:00:42]}  Rd7 {[%clk 0:00:07]} 46. Re2 {[%clk 0:00:39]}  Bf6+ {[%clk 0:00:07]} 47. Rb2 {[%clk 0:00:37]}  Rb7 {[%clk 0:00:07]} 48. Rb3 {[%clk 0:00:37]}  Rxb3 {[%clk 0:00:07]} 49. Qxb3 {[%clk 0:00:37]}  f3 {[%clk 0:00:06]} 50. Qb7+ {[%clk 0:00:36]}  Kg6 {[%clk 0:00:06]} 51. d7 {[%clk 0:00:35]}  f2 {[%clk 0:00:06]} 52. Qg2+ {[%clk 0:00:36]}  Kf7 {[%clk 0:00:04]} 53. Qf1 {[%clk 0:00:34]}  Qxd7 {[%clk 0:00:03]} 54. Qc4+ {[%clk 0:00:29]}  Kg7 {[%clk 0:00:01]} 55. Qf1 {[%clk 0:00:25]}  Qd4 {[%clk 0:00:01]} 56. Qg2+ {[%clk 0:00:24]}  Kf7 {[%clk 0:00:01]} 57. Qb7+ {[%clk 0:00:24]}  Kg6 {[%clk 0:00:01]} 58. Qg2+ {[%clk 0:00:24]}  Kf7 {[%clk 0:00:02]} 59. Qb7+ {[%clk 0:00:24]}  Kg8 {[%clk 0:00:03]} 60. Qa8+ {[%clk 0:00:20]}  Kh7 {[%clk 0:00:03]} 61. Qb7+ {[%clk 0:00:20]}  Bg7 {[%clk 0:00:03]} 62. Qe4+ {[%clk 0:00:11]}  Qxe4 {[%clk 0:00:03]} 63. a4 {[%clk 0:00:12]}  Qd4 {[%clk 0:00:03]} 64. Ka2 {[%clk 0:00:11]}  Qxb2# {[%clk 0:00:04]} 0-1


[Site "https://www.chess.com"]